Cogmind - Beta 16.1 @@@ ROGUE MODE // 2026.02.23 @ 22:40:08 Player: Anonymous Bosch Result: Destroyed by Y-54 Guardian with Gatling Laser Performance ------------- Evolutions (4) 2000 Regions Visited (6) 1200 Robots Destroyed (74) 370 Value Destroyed (2332) 2332 Prototype IDs (27) 540 Alien Tech Used (0) 0 Bonus (847) 847 TOTAL SCORE: 7289 Bonus ------- High Alert Combat Kills 30 Follower Combat Kills 37 Registered with UFD 300 Met Optimus in HQ 500 Friendly Fire -20 Cogmind --------- Core Integrity 0/850 Matter 156/300 Energy 48/100 System Corruption 8% Temperature Cool (12) Movement Core (150) Ox2 Location -6/Extension Parts ------- > --- POWER (2+1) ------ (None) > --- PROPULSION (4) --- (None) > --- UTILITY (6) ------ (None) > --- WEAPON (3) ------- Powered Cannon > --- INVENTORY (5) ---- A0-MCA's Component Scanner Precision Rocket Launcher Precision Rocket Launcher Peak State ------------ > --- POWER ------------ Improved Deuterium Engine Fission Core > --- PROPULSION ------- Armored Treads Medium Treads Armored Huge Wheel > --- UTILITY ---------- Advanced Heat Sink Large Storage Unit Improved Light Armor Plating Layered Medium Armor Plating Reactive Plating Hacking Suite > --- WEAPON ----------- Improved Heavy Laser Hypervelocity Gauss Rifle Heavy Machine Gun > --- INVENTORY -------- Improved Deuterium Engine Light Treads Light Treads Advanced Heat Sink Improved Light Armor Plating A0-MCA's Component Scanner Heavy Ion Cannon Powered Cannon Gauss Rifle Improved Heavy Machine Gun Precision Rocket Launcher Precision Rocket Launcher Multitool [Rating: 66] Favorites ----------- Power Deuterium Engine Engine Deuterium Engine Power Core Fission Core Propulsion Light Treads Treads Light Treads Wheel Subdweller Monowheel Utility Large Storage Unit Device Seismic Detector Storage Large Storage Unit Processor Enhanced Optical Array Hackware Hacking Suite Protection Improved Medium Armor Plating Weapon Assault Rifle Energy Gun Particle Gun Energy Cannon Heavy Ion Cannon Ballistic Gun Assault Rifle Ballistic Cannon Battle Cannon Launcher Grenade Launcher Special Weapon Mining Laser Slashing Weapon Ripper Build | -11 -10 -10 -8 -8 -6 -6 ------- Run | Yrd Mat Sub Rec Scr Fac Ext Slots Evolved 8 | . . . . . 8 . Power 1 | . . . . . 1 . Propulsion 2 | . . . . . 2 . Utility 4 | . . . . . 4 . Weapon 1 | . . . . . 1 . Parts Attached 78 | 8 3 20 4 6 34 3 Power 13 | 1 . 2 1 2 6 1 Engine 11 | 1 . 1 1 2 5 1 Core 2 | . . 1 . . 1 . Reactor . | . . . . . . . Propulsion 19 | 3 . 5 2 1 8 . Treads 12 | 2 . 1 1 1 7 . Leg . | . . . . . . . Wheel 7 | 1 . 4 1 . 1 . Hover . | . . . . . . . Flight . | . . . . . . . Utility 20 | 2 1 4 1 1 11 . Device 5 | 1 . 1 . . 3 . Storage 2 | 1 1 . . . . . Processor 1 | . . . . . 1 . Hackware 1 | . . . . . 1 . Protection 11 | . . 3 1 1 6 . Artifact . | . . . . . . . Weapon 26 | 2 2 9 . 2 9 2 Energy Gun 4 | . . 2 . . 2 . Energy Cannon 2 | . . . . 1 . 1 Ballistic Gun 11 | 2 1 2 . 1 5 . Ballistic Cannon 2 | . . 1 . . 1 . Launcher 4 | . . 2 . . 1 1 Special Weapon 2 | . 1 1 . . . . Impact Weapon . | . . . . . . . Slashing Weapon 1 | . . 1 . . . . Piercing Weapon . | . . . . . . . Special Melee Weapon . | . . . . . . . Unidentified Prototypes 4 | . . . . 1 3 . Parts Lost 25 | . . 9 . . 16 . Power 5 | . . 3 . . 2 . Propulsion 10 | . . 4 . . 6 . Utility 7 | . . 1 . . 6 . Weapon 3 | . . 1 . . 2 . Highest Loss Streak 14 | . . 3 . . 14 . To Critical Strikes 1 | . . 1 . . . . Average Backups 12 | 6 13 13 12 13 13 6 Power . | . 1 . . . 1 . Propulsion 1 | 3 2 1 . 1 1 . Utility 3 | . 4 3 3 3 3 1 Weapon 6 | 1 6 7 7 6 6 3 Tool/Special . | . . . . . . . Unused Backups 24 | . 6 4 3 4 6 1 Power 3 | . 1 . . 1 1 . Propulsion 3 | . 2 . . . 1 . Utility 8 | . 1 3 1 2 . 1 Weapon 9 | . 2 1 2 1 3 . Tool/Special 1 | . . . . . 1 . Average Slot Usage (%) 90 | . 100 93 96 100 92 26 Engine 10 | . 14 9 10 14 8 4 Treads 16 | . 28 12 7 25 18 . Wheel 7 | . . 12 20 2 2 . Device 7 | . 14 8 11 1 11 . Storage 12 | . 14 14 14 14 6 5 Protection 6 | . . 5 2 12 9 . Energy Gun 3 | . . 8 . . 2 . Ballistic Gun 13 | . 27 11 13 14 13 9 Launcher 1 | . . 2 4 . . 1 Slashing Weapon 5 | . . 5 9 13 . . Peak Build Rating 66 | 7 9 18 21 29 66 23 Average Rating 21 | 5 7 12 17 23 55 19 On Entrance 13 | . 7 9 16 21 29 11 Avg Prop Armor Cover (%) 8 | . . 7 10 11 9 . Naked Turns 51 | . . . . . . 51 Heaviest Build 75 | 15 30 36 42 48 75 46 Greatest Support 90 | 40 40 40 20 48 90 3 Greatest Overweight (x) 15 | 1 . 3 2 2 6 15 Average Overweight (x) 1 | . . 1 1 . . 10 Largest Inventory Capacity 15 | 8 15 15 15 15 15 15 Average Capacity 14 | 7 14 15 15 15 15 14 Most Carried 15 | 8 15 15 15 15 15 11 Average Carried 14 | 6 13 14 14 14 14 7 Final Capacity 15 | 8 15 15 15 15 15 5 Final Carried 15 | 8 15 15 15 15 10 3 Class Distribution -------------------- 79% | Mutant 12% | Scavenger-Tank 5% | Gunner Dominant Class ---------------- Mutant | -10/Materials Mutant | -10/Subcaves Mutant | -8/Recycling Mutant | -8/Scraptown Scavenger-Tank | -6/Factory Gunner | -6/Extension Resources | -11 -10 -10 -8 -8 -6 -6 ----------- Run | Yrd Mat Sub Rec Scr Fac Ext Matter Collected 3417 | 339 351 1034 353 76 1100 164 Remotely . | . . . . . . . Salvage Created 2793 | 107 473 623 200 42 1294 54 Parts 169 | 8 26 50 5 2 76 2 Haulers Intercepted 1 | . 1 . . . . . Recyclers Shooed 5 | 1 . . . . 4 . Parts Field Recycled . | . . . . . . . Retrieved Matter . | . . . . . . . Parts Self-Destructed 20 | . . 19 . 1 . . Prevented . | . . . . . . . Parts Restored . | . . . . . . . Kills | -11 -10 -10 -8 -8 -6 -6 ------- Run | Yrd Mat Sub Rec Scr Fac Ext Combat Hostiles Destroyed 58 | . 6 21 . 1 29 1 Melee 3 | . . 3 . . . . Guns 47 | . 6 15 . . 26 . Cannons 3 | . . . . 1 1 1 AOE 5 | . . 3 . . 2 . Classes Destroyed 17 | 2 4 4 . 1 6 . Worker 1 | . . . . . 1 . Builder 2 | . 1 . . . 1 . Tunneler 2 | 2 . . . . . . Hauler 1 | . 1 . . . . . Recycler 5 | 1 1 . 2 . 1 . Turret 2 | . . 2 . . . . Watcher 3 | . 2 . . . 1 . Swarmer 19 | . . 10 . . 9 . Cutter 4 | . . . . . 4 . Grunt 11 | . 6 . . . 4 1 Sentry 7 | . . . . . 7 . Specialist 2 | . . . . . 2 . Hunter 1 | . . . . . 1 . Programmer 2 | . . . . . 2 . Artisan 1 | . . 1 . . . . Subdweller 11 | . . 11 . . . . Ranger 1 | . . . . 1 . . Best Kill Streak 4 | 1 2 4 2 1 4 1 Combat Bots Only 4 | . 2 4 . 1 4 1 Max Kills in Single Turn 3 | 1 1 3 1 1 2 1 Gunslinging 1 | . . 1 . . . . Exploded 3 | . . 3 . . 2 . Melee 1 | . . 1 . . . . Uniques/NPCs Destroyed . | . . . . . . . Combat | -11 -10 -10 -8 -8 -6 -6 -------- Run | Yrd Mat Sub Rec Scr Fac Ext Hostile Shots Fired 578 | . 18 100 . 18 364 78 Missed 159 | . 5 24 . 2 100 28 Hits 419 | . 13 76 . 16 264 50 Melee 6 | . . . . . 6 . Projectile 413 | . 13 76 . 16 258 50 AOE 4 | . . . . . 4 . Critical Strikes 18 | . 1 2 . 1 14 . Damage Taken 6166 | . 168 1277 . 223 3937 561 Core 1094 | . 18 198 . 22 515 341 Absorbed by Shields . | . . . . . . . Ignored by Resistances 205 | . . . . . 205 . Core Remaining (%) 52 | 100 . . . 4 . . Volleys Fired 305 | 18 42 126 1 4 109 5 Largest 3 | 2 2 2 1 2 3 3 Hottest 143 | 40 100 120 20 90 143 108 Shots Fired 562 | 36 74 177 1 7 254 13 Gun 424 | 36 64 103 1 3 212 5 Cannon 61 | . . 13 . 4 37 7 Launcher 35 | . . 29 . . 5 1 Special 42 | . 10 32 . . . . Kinetic 369 | 36 64 96 1 3 164 5 Thermal 154 | . 10 48 . 4 85 7 Explosive 35 | . . 29 . . 5 1 Electromagnetic 4 | . . 4 . . . . Robot Hit Streak 17 | 3 11 13 . 2 17 3 Robot Miss Streak 4 | 3 2 2 . 1 4 2 Penetration Max 1 | . . . . . 1 . Secondary Targets 5 | . . 1 . . 4 . Max Gunslinging Chain 1 | . . 1 . . 1 . Shots Hit Robots 317 | 17 39 86 6 3 161 5 Core Hits 162 | 4 21 48 2 2 85 . Critical Kills 6 | . . . . . 6 . Critical Parts Destroyed 3 | . . . . . 3 . Critical Strikes 10 | . . 1 . . 9 . Burn 1 | . . 1 . . . . Destroy 9 | . . . . . 9 . Melee Attacks 73 | . . 55 17 . 1 . Impact . | . . . . . . . Slashing 73 | . . 55 17 . 1 . Piercing . | . . . . . . . Sneak Attacks 4 | . . 1 3 . . . Combat Hostiles 1 | . . 1 . . . . Follow-up Attacks . | . . . . . . . Damage Inflicted 6760 | 217 539 1591 446 112 3707 148 Guns 4945 | 217 534 955 . 20 3179 40 Cannons 486 | . . . . 82 296 108 Explosions 530 | . . 361 . . 169 . Melee 697 | . . 251 446 . . . Ramming 78 | . 5 . . 10 63 . Kinetic 3711 | 217 534 803 . 20 2097 40 Thermal 1671 | . . 103 . 82 1378 108 Explosive 530 | . . 361 . . 169 . Electromagnetic 73 | . . 73 . . . . Impact . | . . . . . . . Slashing 697 | . . 251 446 . . . Piercing . | . . . . . . . Highest Corruption 8 | . . . . . 8 8 Average Corruption 6 | . . . . . 5 8 Corruption Purged . | . . . . . . . Corruption Blocked . | . . . . . . . Effects 54 | . . . . . 22 32 Message Errors 18 | . . . . . 6 12 Matter Fused 7 | . . . . . 3 4 Heat Flow Errors 7 | . . . . . 3 4 Energy Discharges 5 | . . . . . 2 3 Parts Rejected 1 | . . . . . . 1 Data Loss (minor) 5 | . . . . . 4 1 Data Loss (major) 5 | . . . . . 2 3 Misfires 4 | . . . . . . 4 Weapon Failures 2 | . . . . . 2 . Overload Shots . | . . . . . . . Overflow Damage 128 | . . 5 106 . 2 15 Projectiles 15 | . . . . . . 15 Explosions 7 | . . 5 . . 2 . Melee 106 | . . . 106 . . . Knockbacks . | . . . . . . . Impact . | . . . . . . . Kinetic . | . . . . . . . Secondary . | . . . . . . . Self-Inflicted Damage 366 | . . 17 . . 289 60 Shots 9 | . . 1 . . 7 1 Rammed 12 | . 2 . . 2 8 . Targets Rammed 13 | . 2 . . 2 9 . Kicked . | . . . . . . . Crushed 1 | . . . . . 1 . Highest Temperature 265 | . 100 . . 111 265 245 Average Temperature 53 | . 27 . . 56 57 63 Received Heat Transfer 1354 | . 111 168 . 121 759 195 Effects 2 | . . . . . 2 . Energy Bleed 1 | . . . . . 1 . Interference 1 | . . . . . 1 . Siege Activations . | . . . . . . . Martial Activations . | . . . . . . . Shielding Activations . | . . . . . . . Robots Disrupted . | . . . . . . . Combat Hostiles . | . . . . . . . Robots Corrupted 1 | . . . . . 1 . Combat Hostiles . | . . . . . . . Parts Fried 2 | . . . . . 2 . Impact Corruptions 1 | . . . . . 1 . Robots Melted . | . . . . . . . Combat Hostiles . | . . . . . . . Parts Melted 1 | . . . . . 1 . Heat Transferred 3122 | . . 309 . 99 2640 74 Parts Sabotaged . | . . . . . . . Parts Stolen . | . . . . . . . Parts Stripped . | . . . . . . . Power Chain Reactions . | . . . . . . . Alert | -11 -10 -10 -8 -8 -6 -6 ------- Run | Yrd Mat Sub Rec Scr Fac Ext Maximum Alert Level 2 | . . . . . 2 . Low Security (%) 89 | 100 100 . 100 . 70 100 Level 1 8 | . . . . . 25 . Level 2 1 | . . . . . 4 . Level 3 . | . . . . . . . Level 4 . | . . . . . . . Level 5 . | . . . . . . . High Security . | . . . . . . . Max Security . | . . . . . . . Peak Influence 441 | 5 86 . 128 . 441 158 Initial 158 | . . . 128 . . 158 Average 62 | . 20 . 32 . 132 30 Influence Increases 2217 | 15 349 575 190 . 1029 59 Destroy 0b10 Robot/C 980 | . 120 240 . . 580 40 Destroy 0b10 Robot/NC 75 | 15 25 . 15 . 20 . Destroy Leader 198 | . 26 20 . . 152 . Allied During Kill 2 | . . . . . . 2 Trap Triggered on 0b10 40 | . 40 . . . . . Successful Hack 61 | . 41 . 14 . 6 . Select Force Hacks 150 | . . . 150 . . . Disable Machine 135 | . . . . . 135 . Destroy Structure 81 | . 7 . 11 . 46 17 Lose Combat Pursuer 495 | . 90 315 . . 90 . Influence Decreases 2216 | 15 298 358 458 . 704 383 Entered New Map 332 | . . 25 140 . . 167 Time Decay 1509 | 15 298 303 318 . 394 181 Lost Part 190 | . . 30 . . 160 . Lost Ally 35 | . . . . . . 35 Purge Threat 150 | . . . . . 150 . Squads Dispatched 14 | . . . . . 14 . Investigation 2 | . . . . . 2 . Extermination 2 | . . . . . 2 . Reinforcement 6 | . . . . . 6 . Assault 1 | . . . . . 1 . Garrison 3 | . . . . . 3 . Intercept . | . . . . . . . Searches Triggered . | . . . . . . . Construction Impeded . | . . . . . . . Haulers Reinforced . | . . . . . . . Active Scanning Responses . | . . . . . . . Cargo Convoy Interrupts . | . . . . . . . Stealth | -11 -10 -10 -8 -8 -6 -6 --------- Run | Yrd Mat Sub Rec Scr Fac Ext Distress Signals 5 | . 4 . . . 1 . Communications Jammed . | . . . . . . . Distress Signals . | . . . . . . . Times Spotted 115 | . 19 28 . 8 56 4 Peak Tracking Total 6 | . 4 6 . 3 6 4 Tactical Retreats 15 | . 3 9 . . 3 . Traps | -11 -10 -10 -8 -8 -6 -6 ------- Run | Yrd Mat Sub Rec Scr Fac Ext Traps Triggered 4 | . 1 . . . 1 2 Indirectly . | . . . . . . . Trap Hack Attempts . | . . . . . . . Triggered . | . . . . . . . Disarmed . | . . . . . . . Reprogrammed 4 | . 4 . . . . . Reused 4 | . 4 . . . . . Traps Extracted . | . . . . . . . Installed 2 | . . 2 . . . . Triggered 4 | . 4 . . . . . Machines | -11 -10 -10 -8 -8 -6 -6 ---------- Run | Yrd Mat Sub Rec Scr Fac Ext Machines Disabled 13 | . . 4 . . 9 . Max in Single Turn 4 | . . 1 . . 4 . Machines Repaired . | . . . . . . . Machines Dismantled . | . . . . . . . Machines Sabotaged . | . . . . . . . Overloaded Fab Kills . | . . . . . . . Hacking | -11 -10 -10 -8 -8 -6 -6 --------- Run | Yrd Mat Sub Rec Scr Fac Ext Machines Accessed 45 | . 10 2 12 11 9 1 Terminals 21 | . 8 . 6 . 6 1 Fabricators 1 | . . . . . 1 . Repair Stations . | . . . . . . . Recycling Units 8 | . 2 . 6 . . . Scanalyzers 2 | . . . . . 2 . Garrison Access . | . . . . . . . Total Hacks 170 | . 31 13 33 67 24 2 Successful 134 | . 22 13 18 67 14 . Failed 35 | . 9 . 15 . 9 2 Catastrophic 4 | . 1 . 3 . . . Database Lockouts 1 | . . . . . 1 . Manual 39 | . 15 . 19 . 5 . Terminals 61 | . 26 . 17 . 16 2 Fabricators 2 | . . . . . 2 . Repair Stations . | . . . . . . . Recycling Units 21 | . 5 . 16 . . . Scanalyzers 6 | . . . . . 6 . Garrison Access . | . . . . . . . Terminal Hacks 100 | . 12 13 1 67 7 . Record 79 | . . 12 . 66 1 . Robot Analysis 4 | . 4 . . . . . Prototype ID Bank 3 | . 3 . . . . . Open Door 1 | . . . . . 1 . Branch Access Points 1 | . . . . . 1 . Terminal Index 2 | . 1 . 1 . . . Unreport Threat 1 | . . . . . 1 . Locate Traps 5 | . 2 . . . 3 . Reprogram Traps 1 | . 1 . . . . . Registered Components 1 | . 1 . . . . . Proto ID Catalog 2 | . . 1 . 1 . . Fabricator Hacks 1 | . . . . . 1 . Network Status 1 | . . . . . 1 . Repair Station Hacks . | . . . . . . . Recycling Unit Hacks 10 | . 4 . 6 . . . Report Inventory 4 | . . . 4 . . . Retrieve Components 6 | . 4 . 2 . . . Scanalyzer 5 | . . . . . 5 . Insert Component 2 | . . . . . 2 . Analyze 2 | . . . . . 2 . Retrieve Study 1 | . . . . . 1 . Garrison Access Hacks . | . . . . . . . Unauthorized Hacks 18 | . 6 . 11 . 1 . Terminals 13 | . 6 . 6 . 1 . Botnet 3 | . 1 . 1 . 1 . Skim 10 | . 5 . 5 . . . Fabricators . | . . . . . . . Repair Stations . | . . . . . . . Recycling Units 5 | . . . 5 . . . Tunnel 5 | . . . 5 . . . Scanalyzers . | . . . . . . . Garrison Access . | . . . . . . . Data Cores Recovered . | . . . . . . . Used . | . . . . . . . Hacking Detections 24 | . 8 . 8 . 7 1 Full Trace Events 3 | . . . 2 . 1 . Feedback Events . | . . . . . . . Feedback Blocked . | . . . . . . . Robot Schematics Acquired . | . . . . . . . Robots Built . | . . . . . . . Authchips . | . . . . . . . Time . | . . . . . . . Total Robot Build Rating . | . . . . . . . Part Schematics Acquired 2 | . . . . . 2 . Parts Built . | . . . . . . . Authchips . | . . . . . . . Time . | . . . . . . . Total Part Build Rating . | . . . . . . . Part Studies Acquired 1 | . . . . . 1 . Parts Repaired . | . . . . . . . Time . | . . . . . . . Parts Recycled . | . . . . . . . Recycled Matter . | . . . . . . . Retrieved Matter . | . . . . . . . Retrieved Components 25 | . 19 . 6 . . . Parts Scanalyzed 2 | . . . . . 2 . Part Schematics Acquired 2 | . . . . . 2 . Parts Damaged 1 | . . . . . 1 . Bothacking | -11 -10 -10 -8 -8 -6 -6 ------------ Run | Yrd Mat Sub Rec Scr Fac Ext Used RIF Installer . | . . . . . . . Robots Hacked . | . . . . . . . Non-combat . | . . . . . . . Combat . | . . . . . . . Robot Hacks Applied . | . . . . . . . Relay Couplers Released . | . . . . . . . Fabnet Peak Effective % . | . . . . . . . Robots Rewired 3 | . . . . . . 3 Allies Hacked . | . . . . . . . Hacks Repelled . | . . . . . . . Allies | -11 -10 -10 -8 -8 -6 -6 -------- Run | Yrd Mat Sub Rec Scr Fac Ext Total Allies 3 | . . . . . . 3 Largest Group 1 | . . . . . . 1 Highest-Rated Group 39 | . . . . . . 39 Highest-Rated Ally 39 | . . . . . . 39 Initial UFD Resources 23 | . . . . . 23 23 Total Orders . | . . . . . . . Ally Attacks 18 | . . . . . . 18 Total Damage 321 | . . . . . . 321 Kills 1 | . . . . . . 1 Allies Corrupted . | . . . . . . . Allies Melted 1 | . . . . 1 . . Intel | -11 -10 -10 -8 -8 -6 -6 ------- Run | Yrd Mat Sub Rec Scr Fac Ext Active Infowar (turns) 6977 | 70 1267 2889 975 257 1519 . Optics 1037 | . . . . . 1037 . Seismic 6741 | 70 1267 2889 975 257 1283 . Robot Analysis Total 4 | . 4 . . . . . Derelict Logs Recovered 2 | . . . . 2 . . Drone Launches . | . . . . . . . Drone Recoveries . | . . . . . . . Exploration | -11 -10 -10 -8 -8 -6 -6 ------------- Run | Yrd Mat Sub Rec Scr Fac Ext Turns Passed 12773 | 216 1267 4546 1141 2828 1824 951 Spaces Moved 7263 | 91 655 2901 875 1758 825 158 Core 162 | 2 . . . . 2 158 Treads 3515 | 82 655 909 . 1374 495 . Legs . | . . . . . . . Wheels 3586 | 7 . 1992 875 384 328 . Hover . | . . . . . . . Flight . | . . . . . . . Fastest Speed 50 | 50 160 107 120 130 115 50 Average Speed 151 | 153 160 133 121 157 149 544 Slowest Speed 800 | 160 160 260 130 165 350 800 Overloaded Moves . | . . . . . . . Propulsion Burnouts . | . . . . . . . Robots Hopped . | . . . . . . . Potential Cave-ins . | . . . . . . . Cave-ins Triggered . | . . . . . . . Exploration Rate (%) 57 | 6 86 73 99 95 23 21 Regions Visited 6 Branch Regions 4 Pre-discovered Areas 7 | . . . 5 2 . . Known Exits Taken 2 | . 1 . . . 1 . Unknown Exits Taken 4 | 1 . 1 1 1 . . Scrap Searched 12 | . . 7 . 5 . . Spaces Dug 153 | . 5 70 11 . 67 . Terrain Destroyed 249 | . 8 130 11 1 74 25 Melee 48 | . . 36 11 . 1 . Projectile 35 | . 8 10 . 1 14 2 AOE 165 | . . 84 . . 58 23 Terrain Rammed . | . . . . . . . Walls Destroyed . | . . . . . . . Machines Disabled . | . . . . . . . Actions | -11 -10 -10 -8 -8 -6 -6 --------- Run | Yrd Mat Sub Rec Scr Fac Ext Total 8364 | 132 779 3235 932 1814 1228 244 Wait 325 | . 49 62 15 27 165 7 Move 7258 | 90 654 2900 874 1758 824 158 Hop . | . . . . . . . Pick Up 85 | 15 13 16 8 7 26 . Fast Attach 13 | . 1 1 3 1 7 . Attach 45 | 8 . 8 1 1 21 6 Detach 7 | 1 . . . . 2 4 Swap 101 | . 10 52 3 6 30 . Drop 73 | . 8 13 10 9 33 . Fire 305 | 18 42 126 1 4 109 5 Melee 73 | . . 55 17 . 1 . Ram 5 | . . . . . 5 . Kick . | . . . . . . . Crush 7 | . 2 . . 1 4 . Escape Stasis 30 | . . . . . . 30 Rewire 34 | . . . . . . 34 Trap 2 | . . 2 . . . . Miscellaneous 1 | . . . . . 1 . Route ------- -11/Scrapyard -10/Materials (discovered 5 exits: *Mat x3 / [*Min] / *Sub) -10/Subcaves (discovered 3 exits: *Mat x2 / *Rec) -8/Recycling (discovered 2 exits: *Fac / *Scr) -8/Scraptown (discovered 2 exits: *Fac x2) -6/Factory (discovered 4 exits: *Low x2 / *Ext x2) -6/Extension History --------- Turn | Location | Event 21 | -11/Scrapyard | Discovered new exit (range 16) 217 | -11/Scrapyard | Entered Materials 309 | -10/Materials | Build established: Mutant 496 | -10/Materials | Discovered new exit (range 16) 859 | -10/Materials | Discovered new exit (range 5) 1076 | -10/Materials | Discovered new exit (range 16) 1139 | -10/Materials | Identified exit to Subcaves 1139 | -10/Materials | Identified exit to Materials 1139 | -10/Materials | Learned location of 1 exit from Materials 1242 | -10/Materials | Learned Storage stockpile data 1279 | -10/Materials | Loaded intel: 5 trap records 1304 | -10/Materials | Learned location of 2 exits from Materials 1317 | -10/Materials | Learned 2 Storage zone layouts 1373 | -10/Materials | Learned location of 2 exits from Mines 1484 | -10/Materials | Entered Subcaves 1485 | -10/Subcaves | Identified exit to Materials 1599 | -10/Subcaves | A swath of the cavern ceiling suddenly collapsed 1951 | -10/Subcaves | Shifting Twisted Machinery released Piercing Trap 1962 | -10/Subcaves | Shifting Twisted Machinery released Sub. Monowheel 2134 | -10/Subcaves | Shifting Twisted Machinery released Flamer 2317 | -10/Subcaves | Visited Clippyterm 2321 | -10/Subcaves | Learned Factory garrison access intel 2529 | -10/Subcaves | Disturbed a concealed Subdweller 3217 | -10/Subcaves | Lost 3 parts (2n1w) 3343 | -10/Subcaves | Discovered new exit (range 13) 3411 | -10/Subcaves | Ambushed by Subdweller buried in earth 3529 | -10/Subcaves | Core integrity fell below 50% 3810 | -10/Subcaves | A swath of the cavern ceiling suddenly collapsed 4939 | -10/Subcaves | Ambushed by Subdweller buried in earth 5011 | -10/Subcaves | Ambushed by Subdweller buried in earth 5016 | -10/Subcaves | Core integrity fell below 20% 5254 | -10/Subcaves | Visited 4L-MR0's lab 5267 | -10/Subcaves | Found Powered Cannon 6030 | -10/Subcaves | Entered Recycling 6942 | -8/Recycling | Discovered new exit (range 11) 6970 | -8/Recycling | Scanned before Scraplab entrance 6986 | -8/Recycling | Entered Scraplab 7168 | -8/Recycling | Discovered new exit (range 2) 7171 | -8/Recycling | Entered Scraptown 7459 | -8/Scraptown | Scanned Subdweller tech in exchange for log data 7463 | -8/Scraptown | Learned location of Quarantine (-2) 7464 | -8/Scraptown | Learned location of Warlord (-4) 7486 | -8/Scraptown | Discovered new exit (range 3) 7601 | -8/Scraptown | Visited The Evicted 7644 | -8/Scraptown | Visited Cyclists 7654 | -8/Scraptown | Heard Great Nut preacher, LISTEN AND RECITE! 7884 | -8/Scraptown | Visited Symbiants 7932 | -8/Scraptown | Visited IN-MT5's Study 8245 | -8/Scraptown | Visited TADAMA 8288 | -8/Scraptown | Visited Spacefarers 8374 | -8/Scraptown | Visited Assassins FH 8443 | -8/Scraptown | Visited UFD Registry 8443 | -8/Scraptown | Registered with UFD as "Fiberdrive" 8539 | -8/Scraptown | Entered Cyclist Reading Room 8669 | -8/Scraptown | Visited Scrapoid Research Area 8719 | -8/Scraptown | Visited LU-1G1's Boring Crew 8814 | -8/Scraptown | Visited Science Guys 8898 | -8/Scraptown | Delivered Scrap Shield to a Scientist 9113 | -8/Scraptown | Visited Research Penetration Think Tank 9166 | -8/Scraptown | Visited Scrap Suit Storage 9237 | -8/Scraptown | Visited Science Testing Area 9288 | -8/Scraptown | Discovered new exit (range 5) 9423 | -8/Scraptown | Visited Abandonware Association 9441 | -8/Scraptown | Learned abandonware demo "SHUTEYE.EXE" 9486 | -8/Scraptown | Visited Curators Association 9516 | -8/Scraptown | Visited A0-MCA Data Center 9525 | -8/Scraptown | Given an A rating by A0-MCA 9531 | -8/Scraptown | Found A0-MCA's Component Scanner 9708 | -8/Scraptown | Visited Chapter 10 9802 | -8/Scraptown | Met Optimus 9802 | -8/Scraptown | Accepted into 0bPrime 9914 | -8/Scraptown | Civil war broke out across Scraptown 9979 | -8/Scraptown | Lost 8 allies 9999 | -8/Scraptown | Entered Factory 9999 | -6/Factory | Evolved 8 slots: Power x1, Propulsion x2, Utility x4, Weapon x1 10000 | -6/Factory | Loaded intel: 4 garrison access locations 10332 | -6/Factory | Build established: Scavenger-Tank 10343 | -6/Factory | Identified exit to Lower Caves 10343 | -6/Factory | Identified exit to Extension 10599 | -6/Factory | Garrison activated, responded to threat 10747 | -6/Factory | Garrison activated, responded to threat 10766 | -6/Factory | Central database locked down 11749 | -6/Factory | First assault squad dispatched 11759 | -6/Factory | Garrison activated, responded to threat 11816 | -6/Factory | Core integrity fell below 50% 11823 | -6/Factory | Entered Extension 11850 | -6/Extension | Lost 14 parts (2p5n5u2w) 12306 | -6/Extension | Build established: Gunner 12706 | -6/Extension | Released all parts (2) 12750 | -6/Extension | Core integrity fell below 20% 12758 | -6/Extension | Attached Powered Cannon, gained temporary slot: Power 12774 | -6/Extension | Destroyed by Y-54 Guardian with Gatling Laser Last Messages --------------- 12748_ Attempting to rewire 0H-13N(g). 12749_ 0H-13N(g) rewired. 12751_ Attempting to rewire IB-T5I(h). 12752_ IB-T5I(h) rewired. 12753_ 0H-13N(g) destroyed. 12754_ HV Slug penetrates Y-54 Guardian. 12755_ Acquired 55 matter. 12755_ IB-T5I(h) suffers critical hit (Burn). 12756_ Y-54 Guardian suffers critical hit (Destroy). 12758_ Core temporarily expanded with Power slot. 12758_ Destroyed Lgt. Angular Momentum Engine. 12758_ G-50 Soldier destroyed. 12758_ Y-54 Guardian suffers critical hit (Destroy). 12758_ Destroyed Lgt. Treads. 12760_ HV Slug penetrates Y-54 Guardian. 12762_ IB-T5I(h) destroyed. 12762_ Acquired 54 matter. Map ----- +----------------------------------------------------+ | | | | | | | | | | | | | | | | | | | | | | | | | | | | | | | | | | | | | | | | | | | ?????????????????????????????????????????????????? | | ???????????????????#########?????????????????????? | | ???????????????????# #;######????????????????? | | #################### %%# ! * #????????????????? | | |[@Y ]%= #????????????????? | | #################### [!]#! ]%] #????????????????? | | ???????????????????# *!# ] #????????????????? | | ???????????????????## ## ! #????????????????? | | ????????###?????????# ## [ #????????????????? | | ######### #?????????# #####Y###????????????????? | | "?????????# ##### #######????????????? | | #### "?????????# ?????? | | #??#T#?????????##+##############????????????? | | #??###????????? ????????????????????????? | | #???????????? ??????????????????????? | | ############# ] ????????????????????? | | + = [ #???????????????????? | | ################## #???????????????????? | | ?????????????????# / #???????????????????? | | ?????????????????# #???????????????????? | | ?????????????????#############???????????????????? | | ?????????????????????????????????????????????????? | | ?????????????????????????????????????????????????? | | ?????????????????????????????????????????????????? | | ?????????????????????????????????????????????????? | | ?????????????????????????????????????????????????? | | ?????????????????????????????????????????????????? | | ?????????????????????????????????????????????????? | | ?????????????????????????????????????????????????? | +----------------------------------------------------+ Best States ------------- Heat Dissipation 75 Energy Generation 29 Energy Capacity 500 Matter Stores 300 Matter Capacity 300 Sight Range 22 Terrain Scan Density 10 Armor Coverage 525 Resistance: KI 30 Evasion (%) 50 Recoil Reduction 4 Offensive Hacking 10 Item Schematics ----------------- Multitool | -6/Factory | Scanalyzed Lyr. Medium Armor Plating | -6/Factory | Scanalyzed Robot Schematics ------------------ None Fabricated ------------ Nothing Repaired ---------- Nothing Studied --------- Arm. Wheel | -6/Factory | Hacked Alien Tech Used ----------------- None Achievements -------------- None Challenges ------------ None Game ------ Seed PlasmaPlatingDisintegrator Manual? 0 Play Time 02:03:06 Cumulative 90.6 hours Start 2026.02.23 @ 17:56:30 End 2026.02.23 @ 22:40:08 Sessions 3 Manual Loads 0 Difficulty Rogue Special Mode None Game No. 41 Rogue 41 Adventurer 0 Explorer 0 Win Type - Total 2 Types 2/0/0/0/0/0/0/0/0/0 Lore% 55 Gallery% 46 Achievement% 42 Wizard Run 0 Options --------- Layout 1 ASCII 0 Keyboard 0 Movement Numpad Keybinds 0 Fullscreen 2 Font 24/Smallcaps Map View 50x35 Zoom Use 0% Tactical HUD 1 Map Filters NONE Filters NONE Steam 1 RUN: 284c5b7a-bf6e-4143-9af9-c68075ab2315